Workbook

Sheet Sample Data
B2: SAMPLE DATA
B4: OrderDate | C4: Region | D4: Rep | E4: Item | F4: Units | G4: Cost | H4: Total
B5: 2012-01-06 | C5: East | D5: Jones | E5: Pencil | F5: 95 | G5: 1.99 | H5: =Data[[#This Row],[Cost]]*Data[[#This Row],[Units]] -> 189.05
B6: 2012-01-23 | C6: Central | D6: Kivell | E6: Binder | F6: 50 | G6: 19.99 | H6: =Data[[#This Row],[Cost]]*Data[[#This Row],[Units]] -> 999.5
B7: 2012-02-09 | C7: Central | D7: Jardine | E7: Pencil | F7: 36 | G7: 4.99 | H7: =Data[[#This Row],[Cost]]*Data[[#This Row],[Units]] -> 179.64
B8: 2012-02-29 | C8: Central | D8: Gill | E8: Pen | F8: 27 | G8: 19.99 | H8: =Data[[#This Row],[Cost]]*Data[[#This Row],[Units]] -> 539.73
B9: 2012-03-15 | C9: West | D9: Sorvino | E9: Pencil | F9: 56 | G9: 2.99 | H9: =Data[[#This Row],[Cost]]*Data[[#This Row],[Units]] -> 167.44
B10: 2012-04-01 | C10: East | D10: Jones | E10: Binder | F10: 60 | G10: 4.99 | H10: =Data[[#This Row],[Cost]]*Data[[#This Row],[Units]] -> 299.4
B11: 2012-04-18 | C11: Central | D11: Andrews | E11: Pencil | F11: 75 | G11: 1.99 | H11: =Data[[#This Row],[Cost]]*Data[[#This Row],[Units]] -> 149.25
B12: 2012-05-05 | C12: Central | D12: Jardine | E12: Pencil | F12: 90 | G12: 4.99 | H12: =Data[[#This Row],[Cost]]*Data[[#This Row],[Units]] -> 449.1
B13: 2012-05-22 | C13: West | D13: Thompson | E13: Pencil | F13: 32 | G13: 1.99 | H13: =Data[[#This Row],[Cost]]*Data[[#This Row],[Units]] -> 63.68
B14: 2012-06-08 | C14: East | D14: Jones | E14: Binder | F14: 60 | G14: 8.99 | H14: =Data[[#This Row],[Cost]]*Data[[#This Row],[Units]] -> 539.4
B15: 2012-06-25 | C15: Central | D15: Morgan | E15: Pencil | F15: 90 | G15: 4.99 | H15: =Data[[#This Row],[Cost]]*Data[[#This Row],[Units]] -> 449.1
B16: 2012-07-12 | C16: East | D16: Howard | E16: Binder | F16: 29 | G16: 1.99 | H16: =Data[[#This Row],[Cost]]*Data[[#This Row],[Units]] -> 57.71
B17: 2012-07-29 | C17: East | D17: Parent | E17: Binder | F17: 81 | G17: 19.99 | H17: =Data[[#This Row],[Cost]]*Data[[#This Row],[Units]] -> 1619.19
B18: 2012-08-15 | C18: East | D18: Jones | E18: Pencil | F18: 35 | G18: 4.99 | H18: =Data[[#This Row],[Cost]]*Data[[#This Row],[Units]] -> 174.65
B19: 2012-09-01 | C19: Central | D19: Smith | E19: Desk | F19: 2 | G19: 125 | H19: =Data[[#This Row],[Cost]]*Data[[#This Row],[Units]] -> 250
B20: 2012-09-18 | C20: East | D20: Jones | E20: Pen Set | F20: 16 | G20: 15.99 | H20: =Data[[#This Row],[Cost]]*Data[[#This Row],[Units]] -> 255.84
B21: 2012-10-05 | C21: Central | D21: Morgan | E21: Binder | F21: 28 | G21: 8.99 | H21: =Data[[#This Row],[Cost]]*Data[[#This Row],[Units]] -> 251.72
B22: 2012-10-22 | C22: East | D22: Jones | E22: Pen | F22: 64 | G22: 8.99 | H22: =Data[[#This Row],[Cost]]*Data[[#This Row],[Units]] -> 575.36
B23: 2012-11-08 | C23: East | D23: Parent | E23: Pen | F23: 15 | G23: 19.99 | H23: =Data[[#This Row],[Cost]]*Data[[#This Row],[Units]] -> 299.85
B24: 2012-11-25 | C24: Central | D24: Kivell | E24: Pen Set | F24: 96 | G24: 4.99 | H24: =Data[[#This Row],[Cost]]*Data[[#This Row],[Units]] -> 479.04
B25: 2012-12-12 | C25: Central | D25: Smith | E25: Pencil | F25: 67 | G25: 1.29 | H25: =Data[[#This Row],[Cost]]*Data[[#This Row],[Units]] -> 86.43
B26: 2012-12-29 | C26: East | D26: Parent | E26: Pen Set | F26: 74 | G26: 15.99 | H26: =Data[[#This Row],[Cost]]*Data[[#This Row],[Units]] -> 1183.26
B27: 2013-01-15 | C27: Central | D27: Gill | E27: Binder | F27: 46 | G27: 8.99 | H27: =Data[[#This Row],[Cost]]*Data[[#This Row],[Units]] -> 413.54
B28: 2013-02-01 | C28: Central | D28: Smith | E28: Binder | F28: 87 | G28: 15 | H28: =Data[[#This Row],[Cost]]*Data[[#This Row],[Units]] -> 1305
B29: 2013-02-28 | C29: East | D29: Jones | E29: Binder | F29: 4 | G29: 4.99 | H29: =Data[[#This Row],[Cost]]*Data[[#This Row],[Units]] -> 19.96
B30: 2013-03-07 | C30: West | D30: Sorvino | E30: Binder | F30: 7 | G30: 19.99 | H30: =Data[[#This Row],[Cost]]*Data[[#This Row],[Units]] -> 139.93
B31: 2013-03-24 | C31: Central | D31: Jardine | E31: Pen Set | F31: 50 | G31: 4.99 | H31: =Data[[#This Row],[Cost]]*Data[[#This Row],[Units]] -> 249.5
B32: 2013-04-10 | C32: Central | D32: Andrews | E32: Pencil | F32: 66 | G32: 1.99 | H32: =Data[[#This Row],[Cost]]*Data[[#This Row],[Units]] -> 131.34
B33: 2013-04-27 | C33: East | D33: Howard | E33: Pen | F33: 96 | G33: 4.99 | H33: =Data[[#This Row],[Cost]]*Data[[#This Row],[Units]] -> 479.04
B34: 2013-05-14 | C34: Central | D34: Gill | E34: Pencil | F34: 53 | G34: 1.29 | H34: =Data[[#This Row],[Cost]]*Data[[#This Row],[Units]] -> 68.37
B35: 2013-05-31 | C35: Central | D35: Gill | E35: Binder | F35: 80 | G35: 8.99 | H35: =Data[[#This Row],[Cost]]*Data[[#This Row],[Units]] -> 719.2
B36: 2013-06-17 | C36: Central | D36: Kivell | E36: Desk | F36: 5 | G36: 125 | H36: =Data[[#This Row],[Cost]]*Data[[#This Row],[Units]] -> 625
B37: 2013-07-04 | C37: East | D37: Jones | E37: Pen Set | F37: 62 | G37: 4.99 | H37: =Data[[#This Row],[Cost]]*Data[[#This Row],[Units]] -> 309.38
B38: 2013-07-21 | C38: Central | D38: Morgan | E38: Pen Set | F38: 55 | G38: 12.49 | H38: =Data[[#This Row],[Cost]]*Data[[#This Row],[Units]] -> 686.95
B39: 2013-08-07 | C39: Central | D39: Kivell | E39: Pen Set | F39: 42 | G39: 23.95 | H39: =Data[[#This Row],[Cost]]*Data[[#This Row],[Units]] -> 1005.9
B40: 2013-08-24 | C40: West | D40: Sorvino | E40: Desk | F40: 3 | G40: 275 | H40: =Data[[#This Row],[Cost]]*Data[[#This Row],[Units]] -> 825
B41: 2013-09-10 | C41: Central | D41: Gill | E41: Pencil | F41: 7 | G41: 1.29 | H41: =Data[[#This Row],[Cost]]*Data[[#This Row],[Units]] -> 9.03
B42: 2013-09-27 | C42: West | D42: Sorvino | E42: Pen | F42: 76 | G42: 1.99 | H42: =Data[[#This Row],[Cost]]*Data[[#This Row],[Units]] -> 151.24
B43: 2013-10-14 | C43: West | D43: Thompson | E43: Binder | F43: 57 | G43: 19.99 | H43: =Data[[#This Row],[Cost]]*Data[[#This Row],[Units]] -> 1139.43
B44: 2013-10-31 | C44: Central | D44: Andrews | E44: Pencil | F44: 14 | G44: 1.29 | H44: =Data[[#This Row],[Cost]]*Data[[#This Row],[Units]] -> 18.06
B45: 2013-11-17 | C45: Central | D45: Jardine | E45: Binder | F45: 11 | G45: 4.99 | H45: =Data[[#This Row],[Cost]]*Data[[#This Row],[Units]] -> 54.89
B46: 2013-12-04 | C46: Central | D46: Jardine | E46: Binder | F46: 94 | G46: 19.99 | H46: =Data[[#This Row],[Cost]]*Data[[#This Row],[Units]] -> 1879.06
B47: 2013-12-21 | C47: Central | D47: Andrews | E47: Binder | F47: 28 | G47: 4.99 | H47: =Data[[#This Row],[Cost]]*Data[[#This Row],[Units]] -> 139.72
B48: 2014-07-30 | C48: Central | D48: Howard | E48: Pen Set | F48: 100 | G48: 100 | H48: =Data[[#This Row],[Cost]]*Data[[#This Row],[Units]] -> 10000

Sheet Sample Data 2
B2: SAMPLE DATA 2
B6: OrderDate | C6: Region | D6: Rep | E6: Item | F6: Units | G6: Cost | H6: Total
B7: 2014-07-30 | C7: Central | D7: Howard | E7: Pen Set | F7: 100 | G7: 100 | H7: =Sample2.2[[#This Row],[Units]]*Sample2.2[[#This Row],[Cost]] -> 10000
B8: 2013-11-17 | C8: Central | D8: Jardine | E8: Binder | F8: 11 | G8: 4.99 | H8: =Sample2.2[[#This Row],[Units]]*Sample2.2[[#This Row],[Cost]] -> 54.89
B9: 2013-12-04 | C9: Central | D9: Jardine | E9: Binder | F9: 94 | G9: 19.99 | H9: =Sample2.2[[#This Row],[Units]]*Sample2.2[[#This Row],[Cost]] -> 1879.06
B10: 2013-12-21 | C10: Central | D10: Andrews | E10: Binder | F10: 28 | G10: 4.99 | H10: =Sample2.2[[#This Row],[Units]]*Sample2.2[[#This Row],[Cost]] -> 139.72
B11: 2014-07-30 | C11: Central | D11: Howard | E11: Pen Set | F11: 100 | G11: 100 | H11: =Sample2.2[[#This Row],[Units]]*Sample2.2[[#This Row],[Cost]] -> 10000
B14: OrderDate | C14: Region | D14: Rep | E14: Item | F14: Units | G14: Cost | H14: Total
B15: 2014-07-30 | C15: Central | D15: Howard | E15: Pen Set | F15: 100 | G15: 100 | H15: =Sample2.1[[#This Row],[Units]]*Sample2.1[[#This Row],[Cost]] -> 10000
B16: 2013-11-17 | C16: Central | D16: Jardine | E16: Binder | F16: 11 | G16: 4.99 | H16: =Sample2.1[[#This Row],[Units]]*Sample2.1[[#This Row],[Cost]] -> 54.89
B17: 2013-12-04 | C17: Central | D17: Jardine | E17: Binder | F17: 94 | G17: 19.99 | H17: =Sample2.1[[#This Row],[Units]]*Sample2.1[[#This Row],[Cost]] -> 1879.06
B18: 2013-12-21 | C18: Central | D18: Andrews | E18: Binder | F18: 28 | G18: 4.99 | H18: =Sample2.1[[#This Row],[Units]]*Sample2.1[[#This Row],[Cost]] -> 139.72
B19: 2014-07-30 | C19: Central | D19: Howard | E19: Pen Set | F19: 100 | G19: 100 | H19: =Sample2.1[[#This Row],[Units]]*Sample2.1[[#This Row],[Cost]] -> 10000

Sheet Sheet2
B4: a | C4: 1 | D4: =SUM(C4,D3) -> 1 | E4: 1
B5: b | C5: 2 | D5: =SUM(C5,D4) -> 3 | E5: 2
B6: c | C6: 3 | D6: =SUM(C6,D5) -> 6 | E6: 3
B7: d | C7: 4 | D7: =SUM(C7,D6) -> 10 | E7: =1 -> 1
B8: e | D8: =SUM(C8,D7) -> 10

Sheet Sheet3
B3: a | C3: b | D3: c
B4: a | C4: 1 | D4: =SUM(C4,D3) -> 1
B5: b | C5: 2 | D5: =SUM(C5,D4) -> 3
B6: c | C6: 3 | D6: =SUM(C6,D5) -> 6
B7: d | C7: 4 | D7: =SUM(C7,D6) -> 10
B8: Total | D8: =SUBTOTAL(103,Test3[c]) -> 4

Sheet Sheet4
B3: a | C3: b | D3: c
B4: a | C4: 1 | D4: =SUM(C4,D3) -> 1
B5: b | C5: 2 | D5: =SUM(C5,D4) -> 3
B6: c | C6: 3 | D6: =SUM(C6,D5) -> 6
B7: d | C7: 4 | D7: =SUM(C7,D6) -> 10
B8: Total | D8: =SUBTOTAL(103,Test4[c]) -> 4

Sheet Sheet5
B3: a | C3: b | D3: c
B4: a | C4: 1 | D4: =SUM(C4,D3) -> 1
B5: b | C5: 2 | D5: =SUM(C5,D4) -> 3
B6: c | C6: 3 | D6: =SUM(C6,D5) -> 6
B7: d | C7: 4 | D7: =SUM(C7,D6) -> 10
B8: Total | D8: =SUBTOTAL(103,Test5[c]) -> 4

Sheet Create Table
B3: a | C3: b | D3: c
B4: a | C4: 1 | D4: =SUM(C4,D3) -> 1
B5: b | C5: 2 | D5: =SUM(C5,D4) -> 3
B6: c | C6: 3 | D6: =SUM(C6,D5) -> 6
B7: d | C7: 4 | D7: =SUM(C7,D6) -> 10
